Cogmind - Beta 16.1 @@@ ROGUE MODE // 2026.02.14 @ 12:13:57 Player: Jimothy Jimone Result: Destroyed by Y-54 Guardian with Gatling Laser Performance ------------- Evolutions (3) 1500 Regions Visited (7) 1400 Robots Destroyed (26) 130 Value Destroyed (964) 964 Prototype IDs (0) 0 Alien Tech Used (0) 0 Bonus (333) 333 TOTAL SCORE: 4327 Bonus ------- Follower Combat Kills 333 Cogmind --------- Core Integrity 0/700 Matter 289/300 Energy 97/100 System Corruption 18% Temperature Cool (6) Movement Core (50) Location -7/Factory Parts ------- > --- POWER (2) -------- (None) > --- PROPULSION (2) --- (None) > --- UTILITY (7) ------ Improved Signal Interpreter Improved Signal Interpreter Improved Targeting Computer > --- WEAPON (2) ------- Remote Datajack > --- INVENTORY (5) ---- Light Nuclear Core Aluminum Leg Compact Battery (200) Force Booster Peak State ------------ > --- POWER ------------ Light Nuclear Core Light Nuclear Core > --- PROPULSION ------- Improved Carbon-fiber Leg Improved Carbon-fiber Leg > --- UTILITY ---------- Improved Targeting Computer Improved Melee Analysis Suite Force Booster Reaction Control System Hardened Light Armor Plating System Shield System Shield > --- WEAPON ----------- Mini Grenade Launcher Chainsword > --- INVENTORY -------- Target Analyzer Core Analyzer Hardened Light Armor Plating Mini Grenade Launcher Axe [Rating: 42] Favorites ----------- Power Light Nuclear Core Engine Ion Engine Power Core Light Nuclear Core Propulsion Improved Carbon-fiber Leg Treads Light Treads Leg Improved Carbon-fiber Leg Utility Improved Signal Interpreter Device Force Booster Processor Improved Signal Interpreter Hackware System Shield Protection Hardened Light Armor Plating Weapon Mini Grenade Launcher Energy Gun Shock Rifle Ballistic Gun Flak Gun Launcher Mini Grenade Launcher Special Weapon Mining Laser Slashing Weapon Axe Piercing Weapon Spear Build | -11 -10 -9 -9 -8 -7 -7 -7 ------- Run | Yrd Mat Mat Min Mat Fac Was Fac Slots Evolved 6 | . . 2 . 2 2 . . Power 1 | . . 1 . . . . . Propulsion . | . . . . . . . . Utility 5 | . . 1 . 2 2 . . Weapon . | . . . . . . . . Parts Attached 62 | 7 . 3 2 17 4 . 29 Power 9 | 1 . 2 . 2 . . 4 Engine 1 | 1 . . . . . . . Core 8 | . . 2 . 2 . . 4 Reactor . | . . . . . . . . Propulsion 12 | 2 . . . 5 . . 5 Treads 1 | . . . . 1 . . . Leg 11 | 2 . . . 4 . . 5 Wheel . | . . . . . . . . Hover . | . . . . . . . . Flight . | . . . . . . . . Utility 29 | 2 . 1 1 9 2 . 14 Device 14 | 2 . 1 . 4 1 . 6 Storage . | . . . . . . . . Processor 8 | . . . 1 2 1 . 4 Hackware 3 | . . . . 1 . . 2 Protection 4 | . . . . 2 . . 2 Artifact . | . . . . . . . . Weapon 12 | 2 . . 1 1 2 . 6 Energy Gun 2 | . . . . 1 . . 1 Energy Cannon . | . . . . . . . . Ballistic Gun 2 | 1 . . . . . . 1 Ballistic Cannon . | . . . . . . . . Launcher 3 | . . . 1 . 2 . . Special Weapon 2 | 1 . . . . . . 1 Impact Weapon . | . . . . . . . . Slashing Weapon 2 | . . . . . . . 2 Piercing Weapon 1 | . . . . . . . 1 Special Melee Weapon . | . . . . . . . . Unidentified Prototypes . | . . . . . . . . Corrupted Parts 1 | . . . . 1 . . . System Corruption 5 | . . . . 5 . . . Parts Lost 39 | . . . 1 13 . . 25 Power 7 | . . . . 2 . . 5 Propulsion 7 | . . . . 2 . . 5 Utility 16 | . . . . 6 . . 10 Weapon 9 | . . . 1 3 . . 5 Highest Loss Streak 13 | . . . 1 13 . . 7 To Critical Strikes . | . . . . . . . . Average Backups 4 | . 2 4 5 3 3 4 4 Power . | . 1 1 2 1 . . . Propulsion . | . . . . 1 . . . Utility 1 | . 1 2 3 . 2 2 2 Weapon . | . . . . . 1 2 1 Tool/Special . | . . . . . . . . Unused Backups 7 | . . . . . 1 2 4 Power . | . . . . . . . . Propulsion . | . . . . . . . . Utility 4 | . . . . . 1 1 2 Weapon 3 | . . . . . . 1 2 Tool/Special . | . . . . . . . . Average Slot Usage (%) 92 | . 100 97 93 84 95 100 93 Core 14 | . . 16 22 15 15 15 13 Leg 14 | . 28 22 22 15 15 15 13 Device 21 | . 28 33 32 25 21 23 17 Processor 17 | . . . . 9 14 15 23 Hackware 3 | . . . . 3 7 7 3 Protection 5 | . . . . 4 6 7 5 Ballistic Gun 2 | . 14 11 11 4 . . 1 Launcher 4 | . . . 1 4 12 15 3 Slashing Weapon 4 | . . . . . . . 6 Peak Build Rating 42 | 9 9 16 18 28 35 35 42 Average Rating 31 | 3 9 15 15 22 33 35 37 On Entrance 18 | . 9 9 16 18 22 35 35 Avg Prop Armor Cover (%) . | . . . . . . . . Naked Turns 2 | . . . . 2 . . . Heaviest Build 28 | 10 10 17 20 28 22 22 28 Greatest Support 36 | 20 20 20 20 36 36 36 36 Greatest Overweight (x) 2 | 2 . . . 1 . . 2 Average Overweight (x) . | . . . . . . . . Largest Inventory Capacity 5 | 5 5 5 5 5 5 5 5 Average Capacity 5 | 5 5 5 5 5 5 5 5 Most Carried 5 | 1 4 5 5 5 5 5 5 Average Carried 4 | . 2 4 4 3 3 4 4 Final Capacity 5 | 5 5 5 5 5 5 5 5 Final Carried 5 | 1 4 5 5 . 5 5 4 Class Distribution -------------------- 69% | Mutant 23% | Scavenger-Mutant 7% | Hacker-Mutant Dominant Class ---------------- Mutant | -10/Materials Mutant | -9/Materials Mutant | -9/Mines Mutant | -8/Materials Mutant | -7/Factory Mutant | -7/Waste Mutant | -7/Factory Resources | -11 -10 -9 -9 -8 -7 -7 -7 ----------- Run | Yrd Mat Mat Min Mat Fac Was Fac Matter Collected 1133 | 141 64 . 40 223 . 294 371 Remotely . | . . . . . . . . Salvage Created 1502 | 30 . . 29 200 . 596 647 Parts 71 | 5 . . 2 12 . 5 47 Haulers Intercepted . | . . . . . . . . Recyclers Shooed . | . . . . . . . . Parts Field Recycled . | . . . . . . . . Retrieved Matter . | . . . . . . . . Parts Self-Destructed . | . . . . . . . . Prevented . | . . . . . . . . Parts Restored . | . . . . . . . . Kills | -11 -10 -9 -9 -8 -7 -7 -7 ------- Run | Yrd Mat Mat Min Mat Fac Was Fac Combat Hostiles Destroyed 21 | . . . 2 4 . 3 12 Melee 13 | . . . . 1 . . 12 Guns 4 | . . . 2 2 . . . AOE 4 | . . . . 1 . 3 . Classes Destroyed 9 | 1 . . 1 3 . 1 3 Builder 2 | . . . . 1 . . 1 Tunneler 1 | 1 . . . . . . . Operator 1 | . . . . . . . 1 Watcher 1 | . . . . . . . 1 Swarmer 5 | . . . 2 . . . 3 Grunt 6 | . . . . 1 . . 5 Sentry 5 | . . . . 3 . . 2 Programmer 2 | . . . . . . . 2 Compactor 3 | . . . . . . 3 . Best Kill Streak 4 | 1 . . 2 3 . 2 4 Combat Bots Only 4 | . . . 2 2 . 2 4 Max Kills in Single Turn 1 | 1 . . 1 1 . 1 1 Gunslinging . | . . . . . . . . Exploded 1 | . . . . 1 . 1 . Melee 1 | . . . . 1 . . 1 Uniques/NPCs Destroyed . | . . . . . . . . Combat | -11 -10 -9 -9 -8 -7 -7 -7 -------- Run | Yrd Mat Mat Min Mat Fac Was Fac Hostile Shots Fired 451 | . 1 6 6 85 . 2 351 Missed 151 | . . 1 1 21 . 2 126 Hits 300 | . 1 5 5 64 . . 225 Projectile 300 | . 1 5 5 64 . . 225 Critical Strikes 5 | . . . . . . . 5 Part Disruptions 1 | . . . . 1 . . . Damage Taken 4098 | 32 10 68 55 1056 . 88 2789 Core 986 | 32 . 12 23 211 . 14 694 Absorbed by Shields . | . . . . . . . . Regen/Repaired (Parts) 43 | . . . . . 43 . . Core Remaining (%) 81 | 87 87 . 91 61 . . . Volleys Fired 59 | . 2 3 2 32 2 10 8 Largest 2 | . 1 2 2 2 2 2 1 Hottest 120 | . 20 120 120 63 60 60 50 Shots Fired 79 | . 2 6 3 35 4 20 9 Gun 48 | . 2 3 2 33 . . 8 Cannon . | . . . . . . . . Launcher 26 | . . . . 2 4 20 . Special 5 | . . 3 1 . . . 1 Kinetic 34 | . 2 3 2 22 . . 5 Thermal 15 | . . 3 1 11 . . . Explosive 26 | . . . . 2 4 20 . Electromagnetic 3 | . . . . . . . 3 Robot Hit Streak 11 | . . . 2 6 . 10 11 Robot Miss Streak 4 | . 1 . . 4 . 1 1 Penetration Max . | . . . . . . . . Secondary Targets . | . . . . . . . . Shots Hit Robots 82 | . . . 2 19 . 13 48 Core Hits 43 | 3 . . 2 12 . 8 18 Critical Kills . | . . . . . . . . Critical Parts Destroyed . | . . . . . . . . Critical Strikes 9 | . . . . 1 . . 8 Burn 1 | . . . . 1 . . . Sever 8 | . . . . . . . 8 Melee Attacks 85 | . . . . . . . 85 Impact . | . . . . . . . . Slashing 85 | . . . . . . . 85 Piercing . | . . . . . . . . Sneak Attacks 2 | . . . . . . . 2 Combat Hostiles . | . . . . . . . . Follow-up Attacks . | . . . . . . . . Damage Inflicted 4368 | 73 . . 51 604 . 1916 1724 Guns 317 | . . . 27 270 . . 20 Cannons . | . . . . . . . . Explosions 2135 | . . . . 219 . 1916 . Melee 1701 | . . . . . . . 1701 Ramming 191 | 73 . . . 115 . . 3 Kinetic 163 | . . . 27 136 . . . Thermal 158 | . . . 24 134 . . . Explosive 2056 | . . . . 140 . 1916 . Electromagnetic 99 | . . . . 79 . . 20 Impact . | . . . . . . . . Slashing 1701 | . . . . . . . 1701 Piercing . | . . . . . . . . Highest Corruption 21 | 1 1 . . 13 . . 21 Average Corruption 15 | 1 1 . . 11 . . 18 Corruption Purged 5 | . . . . . . . 5 Corruption Blocked . | . . . . . . . . Effects 69 | 1 . . . 16 . . 52 Message Errors 20 | . . . . 5 . . 15 Matter Fused 20 | . . . . 5 . . 15 Heat Flow Errors 5 | . . . . . . . 5 Energy Discharges 5 | 1 . . . 1 . . 3 Parts Rejected 1 | . . . . . . . 1 Data Loss (minor) 7 | . . . . 1 . . 6 Data Loss (major) 3 | . . . . 1 . . 2 Misfires 2 | . . . . . . . 2 Misdirections 5 | . . . . 3 . . 2 Weapon Failures 1 | . . . . . . . 1 Overload Shots . | . . . . . . . . Overflow Damage 43 | . . . . . . . 43 Projectiles . | . . . . . . . . Explosions . | . . . . . . . . Melee 43 | . . . . . . . 43 Knockbacks . | . . . . . . . . Impact . | . . . . . . . . Kinetic . | . . . . . . . . Secondary . | . . . . . . . . Self-Inflicted Damage 228 | 32 . . . 107 . 88 1 Shots 6 | . . . . 3 . 3 . Rammed 53 | 20 . . . 32 . . 1 Targets Rammed 61 | 20 . . . 40 . . 1 Kicked 8 | . . . . 8 . . . Crushed . | . . . . . . . . Highest Temperature 302 | . . 97 50 302 . . 258 Average Temperature 96 | . . 46 29 119 . . 116 Received Heat Transfer 1020 | . 6 27 9 288 . . 690 Effects 1 | . . . . 1 . . . Interference 1 | . . . . 1 . . . Siege Activations . | . . . . . . . . Martial Activations . | . . . . . . . . Shielding Activations . | . . . . . . . . Robots Disrupted . | . . . . . . . . Combat Hostiles . | . . . . . . . . Robots Corrupted . | . . . . . . . . Combat Hostiles . | . . . . . . . . Parts Fried . | . . . . . . . . Impact Corruptions . | . . . . . . . . Robots Melted . | . . . . . . . . Combat Hostiles . | . . . . . . . . Parts Melted 4 | . . . . 4 . . . Heat Transferred 420 | . . . 50 370 . . . Parts Sabotaged . | . . . . . . . . Parts Stolen . | . . . . . . . . Parts Stripped . | . . . . . . . . Power Chain Reactions . | . . . . . . . . Alert | -11 -10 -9 -9 -8 -7 -7 -7 ------- Run | Yrd Mat Mat Min Mat Fac Was Fac Maximum Alert Level . | . . . . . . . . Low Security (%) 100 | 100 100 100 100 100 100 100 100 Level 1 . | . . . . . . . . Level 2 . | . . . . . . . . Level 3 . | . . . . . . . . Level 4 . | . . . . . . . . Level 5 . | . . . . . . . . High Security . | . . . . . . . . Max Security . | . . . . . . . . Peak Influence 127 | 5 . 2 86 41 6 22 127 Initial 17 | . . . . 17 . . . Average 30 | . . . 43 6 . 5 45 Influence Increases 1024 | 5 . 3 96 177 6 54 683 Destroy 0b10 Robot/C 560 | . . . 60 100 . . 400 Destroy 0b10 Robot/NC 35 | 5 . . . 10 . . 20 Destroy Leader 146 | . . . 10 32 . . 104 Allied During Kill 51 | . . . 11 4 . . 36 Successful Hack 26 | . . . . . . . 26 Disable Machine 60 | . . . 15 15 . . 30 Destroy Structure 101 | . . 3 . 16 6 54 22 Lose Combat Pursuer 45 | . . . . . . . 45 Influence Decreases 1024 | 5 . 2 51 223 6 54 683 Entered New Map 30 | . . . 1 29 . . . Time Decay 635 | 5 . 2 40 115 6 54 413 Lost Part 286 | . . . 10 66 . . 210 Lost Ally 73 | . . . . 13 . . 60 Squads Dispatched 16 | . 1 . . 2 1 . 12 Investigation 3 | . . . . 1 . . 2 Extermination 4 | . . . . . . . 4 Reinforcement 6 | . 1 . . 1 1 . 3 Assault . | . . . . . . . . Garrison 3 | . . . . . . . 3 Intercept . | . . . . . . . . Searches Triggered . | . . . . . . . . Construction Impeded . | . . . . . . . . Haulers Reinforced . | . . . . . . . . Active Scanning Responses . | . . . . . . . . Cargo Convoy Interrupts . | . . . . . . . . Stealth | -11 -10 -9 -9 -8 -7 -7 -7 --------- Run | Yrd Mat Mat Min Mat Fac Was Fac Distress Signals 2 | . . . . 1 . . 1 Communications Jammed . | . . . . . . . . Distress Signals . | . . . . . . . . Times Spotted 61 | . 5 2 3 11 3 9 28 Peak Tracking Total 6 | . 4 2 3 3 1 3 6 Tactical Retreats 4 | . . . . 1 . 1 2 ECM-based Alert Blocks 1 | . . . . 1 . . . Traps | -11 -10 -9 -9 -8 -7 -7 -7 ------- Run | Yrd Mat Mat Min Mat Fac Was Fac Traps Triggered 2 | . . . . . 1 . 1 Indirectly . | . . . . . . . . Trap Hack Attempts . | . . . . . . . . Triggered . | . . . . . . . . Disarmed . | . . . . . . . . Reprogrammed . | . . . . . . . . Reused . | . . . . . . . . Traps Extracted . | . . . . . . . . Installed . | . . . . . . . . Triggered . | . . . . . . . . Machines | -11 -10 -9 -9 -8 -7 -7 -7 ---------- Run | Yrd Mat Mat Min Mat Fac Was Fac Machines Disabled 4 | . . . 1 1 . . 2 Max in Single Turn 1 | . . . . 1 . . 1 Machines Repaired . | . . . . . . . . Machines Dismantled . | . . . . . . . . Machines Sabotaged . | . . . . . . . . Overloaded Fab Kills . | . . . . . . . . Hacking | -11 -10 -9 -9 -8 -7 -7 -7 --------- Run | Yrd Mat Mat Min Mat Fac Was Fac Machines Accessed 11 | . . . . 2 2 . 7 Terminals 7 | . . . . 2 1 . 4 Fabricators 2 | . . . . . . . 2 Repair Stations 1 | . . . . . 1 . . Recycling Units 1 | . . . . . . . 1 Scanalyzers . | . . . . . . . . Garrison Access . | . . . . . . . . Total Hacks 23 | . . . . 5 3 . 15 Successful 13 | . . . . 2 3 . 8 Failed 10 | . . . . 3 . . 7 Catastrophic 2 | . . . . . . . 2 Database Lockouts . | . . . . . . . . Manual 1 | . . . . . . . 1 Terminals 14 | . . . . 5 1 . 8 Fabricators 5 | . . . . . . . 5 Repair Stations 2 | . . . . . 2 . . Recycling Units 2 | . . . . . . . 2 Scanalyzers . | . . . . . . . . Garrison Access . | . . . . . . . . Terminal Hacks 7 | . . . . 2 1 . 4 Record 3 | . . . . 1 . . 2 Open DSF 2 | . . . . . 1 . 1 Alert Level 2 | . . . . 1 . . 1 Fabricator Hacks 2 | . . . . . . . 2 Build 2 | . . . . . . . 2 Repair Station Hacks 2 | . . . . . 2 . . Scan Component 1 | . . . . . 1 . . Repair 1 | . . . . . 1 . . Recycling Unit Hacks 2 | . . . . . . . 2 Report Inventory 1 | . . . . . . . 1 Retrieve Components 1 | . . . . . . . 1 Scanalyzer . | . . . . . . . . Garrison Access Hacks . | . . . . . . . . Unauthorized Hacks . | . . . . . . . . Terminals . | . . . . . . . . Fabricators . | . . . . . . . . Repair Stations . | . . . . . . . . Recycling Units . | . . . . . . . . Scanalyzers . | . . . . . . . . Garrison Access . | . . . . . . . . Data Cores Recovered . | . . . . . . . . Used . | . . . . . . . . Hacking Detections 5 | . . . . . . . 5 Full Trace Events 2 | . . . . . . . 2 Feedback Events . | . . . . . . . . Feedback Blocked . | . . . . . . . . Robot Schematics Acquired . | . . . . . . . . Robots Built 3 | . . . . . . . 3 Authchips . | . . . . . . . . Time 134 | . . . . . . . 134 Total Robot Build Rating 12 | . . . . . . . 12 Part Schematics Acquired . | . . . . . . . . Parts Built 2 | . . . . . . . 2 Authchips . | . . . . . . . . Time 53 | . . . . . . . 53 Total Part Build Rating 12 | . . . . . . . 12 Part Studies Acquired . | . . . . . . . . Parts Repaired 1 | . . . . . 1 . . Time 26 | . . . . . 26 . . Parts Recycled . | . . . . . . . . Recycled Matter . | . . . . . . . . Retrieved Matter . | . . . . . . . . Retrieved Components 3 | . . . . . . . 3 Parts Scanalyzed . | . . . . . . . . Part Schematics Acquired . | . . . . . . . . Parts Damaged . | . . . . . . . . Bothacking | -11 -10 -9 -9 -8 -7 -7 -7 ------------ Run | Yrd Mat Mat Min Mat Fac Was Fac Used RIF Installer . | . . . . . . . . Robots Hacked 1 | . . . . . . . 1 Non-combat . | . . . . . . . . Combat 1 | . . . . . . . 1 Robot Hacks Applied 1 | . . . . . . . 1 parse_system 1 | . . . . . . . 1 Relay Couplers Released . | . . . . . . . . Fabnet Peak Effective % . | . . . . . . . . Robots Rewired . | . . . . . . . . Allies Hacked . | . . . . . . . . Hacks Repelled . | . . . . . . . . Allies | -11 -10 -9 -9 -8 -7 -7 -7 -------- Run | Yrd Mat Mat Min Mat Fac Was Fac Total Allies 7 | . . . 3 . . 1 3 Largest Group 3 | . . . 3 3 . 1 3 Highest-Rated Group 60 | . . . 40 40 . 31 60 Highest-Rated Ally 31 | . . . 16 16 . 31 20 Total Orders . | . . . . . . . . Ally Attacks 81 | . . . 8 29 . 17 27 Total Damage 1323 | . . . 77 315 . 277 654 Kills 12 | . . . 1 2 . . 9 Allies Corrupted . | . . . . . . . . Allies Melted 1 | . . . . . . . 1 Intel | -11 -10 -9 -9 -8 -7 -7 -7 ------- Run | Yrd Mat Mat Min Mat Fac Was Fac Active Infowar (turns) 1410 | 46 83 71 138 366 . . 706 Sensors 706 | . . . . . . . 706 Terrain 646 | 42 83 71 138 312 . . . Seismic 641 | 46 83 71 138 303 . . . Machine Analysis 49 | . . . . 49 . . . ECM 572 | . . 71 135 366 . . . Robot Analysis Total . | . . . . . . . . Derelict Logs Recovered 1 | . . . 1 . . . . Drone Launches . | . . . . . . . . Drone Recoveries . | . . . . . . . . Exploration | -11 -10 -9 -9 -8 -7 -7 -7 ------------- Run | Yrd Mat Mat Min Mat Fac Was Fac Turns Passed 3854 | 97 83 71 138 674 260 221 2310 Spaces Moved 1990 | 93 64 40 106 429 179 157 922 Core 82 | 72 . . . 7 . . 3 Treads 14 | . . . . 14 . . . Legs 1894 | 21 64 40 106 408 179 157 919 Wheels . | . . . . . . . . Hover . | . . . . . . . . Flight . | . . . . . . . . Fastest Speed 50 | 50 120 120 120 50 120 120 50 Average Speed 125 | 70 120 120 120 123 120 120 135 Slowest Speed 260 | 150 120 120 120 190 120 120 260 Overloaded Moves . | . . . . . . . . Propulsion Burnouts . | . . . . . . . . Robots Hopped . | . . . . . . . . Potential Cave-ins 4 | . . . . . . . 4 Cave-ins Triggered 2 | . . . . . . . 2 Exploration Rate (%) 23 | 3 25 7 12 33 6 79 20 Regions Visited 7 Branch Regions 1 Pre-discovered Areas . | . . . . . . . . Known Exits Taken 1 | . . . 1 . . . . Unknown Exits Taken 4 | 1 1 1 . 1 . . . Scrap Searched . | . . . . . . . . Spaces Dug 31 | . . 3 . . . . 28 Terrain Destroyed 140 | . . 3 . 14 6 89 28 Melee 28 | . . . . . . . 28 Projectile 3 | . . 3 . . . . . AOE 109 | . . . . 14 6 89 . Terrain Rammed . | . . . . . . . . Walls Destroyed . | . . . . . . . . Machines Disabled . | . . . . . . . . Actions | -11 -10 -9 -9 -8 -7 -7 -7 --------- Run | Yrd Mat Mat Min Mat Fac Was Fac Total 3092 | 121 68 51 111 527 219 170 1825 Wait 787 | 1 . . . . 26 . 760 Move 1984 | 92 63 39 105 428 179 156 922 Hop . | . . . . . . . . Pick Up 26 | 1 3 4 1 4 6 2 5 Fast Attach 41 | 7 . 1 1 7 5 . 20 Attach 15 | . . 1 1 7 . . 6 Detach 5 | . . . . . . . 5 Swap 10 | . . 1 . 4 . . 5 Drop 19 | . . 2 1 5 1 2 8 Fire 59 | . 2 3 2 32 2 10 8 Melee 85 | . . . . . . . 85 Ram 53 | 20 . . . 32 . . 1 Kick 8 | . . . . 8 . . . Crush . | . . . . . . . . Escape Stasis . | . . . . . . . . Rewire . | . . . . . . . . Trap . | . . . . . . . . Miscellaneous . | . . . . . . . . Route ------- -11/Scrapyard -10/Materials -9/Materials -9/Mines -8/Materials -7/Factory -7/Waste -7/Factory History --------- Turn | Location | Event 2 | -11/Scrapyard | Met Revision 17 4 | -11/Scrapyard | Discovered new exit (range 15) 98 | -11/Scrapyard | Entered Materials 99 | -10/Materials | Met a group of wandering Federalists 162 | -10/Materials | Discovered new exit (range 15) 181 | -10/Materials | Entered another Materials area 181 | -9/Materials | Evolved 2 slots: Power x1, Utility x1 217 | -9/Materials | Discovered new exit (range 15) 252 | -9/Materials | Entered Mines 255 | -9/Mines | Assisted by bots powering up and referring to "LRC-V3" 288 | -9/Mines | Learned Materials garrison access intel 300 | -9/Mines | Build established: Mutant 370 | -9/Mines | Discovered new exit (range 12) 377 | -9/Mines | Received a Rocket Launcher from a helpful Derelict 389 | -9/Mines | Identified exit to Materials 390 | -9/Mines | Entered Materials 390 | -8/Materials | Accompanied by 3 allies 390 | -8/Materials | Evolved 2 slots: Utility x2 391 | -8/Materials | Loaded intel: 1 garrison access location 760 | -8/Materials | System corruption reached 10% 813 | -8/Materials | Lost 13 parts (2p2n6u3w) 1047 | -8/Materials | Discovered new exit (range 14) 1064 | -8/Materials | Entered Factory 1064 | -7/Factory | Evolved 2 slots: Utility x2 1229 | -7/Factory | Repaired Lgt. Armor Plating 1324 | -7/Factory | Sucked down chute 1324 | -7/Factory | Entered Waste 1325 | -7/Waste | Met a frightened Derelict 1337 | -7/Waste | Spotted C-40 Crusher 1370 | -7/Waste | Spotted C-40 Crusher 1370 | -7/Waste | Spotted C-40 Crusher 1387 | -7/Waste | Destroyed C-40 Crusher 1392 | -7/Waste | Spotted C-40 Crusher 1396 | -7/Waste | Destroyed C-40 Crusher 1415 | -7/Waste | Spotted C-40 Crusher 1443 | -7/Waste | Destroyed C-40 Crusher 1456 | -7/Waste | Spotted C-40 Crusher 1512 | -7/Waste | Discovered new exit (range 16) 1545 | -7/Waste | Entered Factory 1553 | -7/Factory | Identified exit to DSF 1933 | -7/Factory | Fabricated B-48 Gladiator (x3) 2221 | -7/Factory | Fabricated Wave Gun (x2) 2762 | -7/Factory | Crushed by falling debris 2770 | -7/Factory | Crushed by falling debris 2770 | -7/Factory | System corruption reached 10% 2801 | -7/Factory | Lost 7 parts (1p4u2w) 3257 | -7/Factory | Build established: Scavenger-Mutant 3489 | -7/Factory | Garrison activated, responded to threat 3719 | -7/Factory | Core integrity fell below 50% 3807 | -7/Factory | Lost 3 parts (1n2u) 3843 | -7/Factory | Core integrity fell below 20% 3855 | -7/Factory | Destroyed by Y-54 Guardian with Gatling Laser Last Messages --------------- Acquired Lgt. Nuclear Core. Acquired 10 matter. R-06 Scavenger collects Aluminum Leg. 4L JF&U5P C:XMTNAV46P>FG2 Imp. Titanium Leg destroyed. Mic. Nuclear Core destroyed. Aluminum Leg destroyed. System corrupted: Matter fused (-6). Y-54 Guardian Imp. Light Armor Plating severed. Axe destroyed. Slammed into Y-54 Guardian. Acquired 4 matter. Jacked Y-54 Guardian... >>parse_system Reading system data... Map ----- +----------------------------------------------------+ | ??????????????????????????????? | | ??????????????????????????????? | | ??????????????????????????????? | | ??????????????????????????????? | | ??????????????????????????????? | | ??????????????????????????????? | | ??????????????????????????????? | | ??????????????????????????????? | | ??????????????????????????????? | | ??????????????????????????????? | | ??????????????????????????????? | | ??????????????????????????????? | | ??????????????????????????????? | | ??????????????????????????????? | | ??????????????????????????????? | | ??????????????????????????????? | | ??????????????????????????????? | | ??????????????????????????????? | | ??????????????????????????????? | | ??????????????????????????????? | | ????????????????????? ????????? | | ???????????????????? ######## | | ?################### # | | ?# [!! # # """ | | ?# m [!! + # """ | | ?#Y @ [!! """"?# # """ | | ?# "" "" """"?# # | | # ""S"" """"?# # """ | | ## """" """" # # """ | | ?# # + """ | | ?################### # | | ?????# ## ####+### | | ?????# # #?# #?? | | ?????# # #?# #?? | | ?????# % + [ #?# #?? | | ?????# """ """ # #?# #?? | | ?????# """ """ # #?# #?? | | ?????# """ """ ### ###?# #?? | | ?????# #?#!##### #?? | | ?????# "" "" """ #?#%[ +?? | | ?????# ""R"" """ #?# #?? | | ?????# """" """ #?# #?? | | ?????# #?# | | ?????##############?#+##+##### | | ???????????????????? ???? | | ????????????????????? "T???? | | ????????????????????? ??? | | ??????????????????????""""" ?? | | ?????????????????????? !## | | ?????????????????????##+###?### | +----------------------------------------------------+ Best States ------------- Heat Dissipation 76 Energy Generation 24 Energy Capacity 250 Matter Stores 300 Matter Capacity 300 Sight Range 16 Robot Scan Range 15 Terrain Scan Range 16 Terrain Scan Density 10 ECM Strength 2 Armor Coverage 225 Evasion (%) 63 Targeting Accuracy 6 Melee Accuracy 6 Core Analysis 6 Recoil Reduction 1 Force Boost 20 Offensive Hacking 10 Defensive Hacking 20 Item Schematics ----------------- None Robot Schematics ------------------ None Fabricated ------------ B-48 Gladiator | x3 | -7/Factory | Preloaded Wave Gun | x2 | -7/Factory | Preloaded Repaired ---------- Lgt. Armor Plating | 52% | -7/Factory Studied --------- None Alien Tech Used ----------------- None Achievements -------------- Deadly Force Ew, Corruption Just What I Needed Challenges ------------ None Game ------ Seed NodeIntegratedReplica Manual? 0 Play Time 00:57:00 Cumulative 17.9 hours Start 2026.02.13 @ 13:35:45 End 2026.02.14 @ 12:13:57 Sessions 3 Manual Loads 0 Difficulty Rogue Special Mode None Game No. 31 Rogue 31 Adventurer 0 Explorer 0 Win Type - Total 0 Types 0/0/0/0/0/0/0/0/0/0 Lore% 22 Gallery% 16 Achievement% 16 Wizard Run 0 Options --------- Layout 1 ASCII 0 Keyboard 1 Movement Arrows Keybinds 0 Fullscreen 0 Font 14/SmallcapsGlow Map View 55x38 Zoom Use 0% Tactical HUD 0 Map Filters NONE Filters NONE Steam 1 RUN: f176931a-9294-4e0d-bbe4-2f9c51aa1e2c